{"text_format":"1","workbook":"xlsx","n_sheets":1,"sheets":["Jeugd"],"not_rendered":{"charts":0,"images":0,"macros":0,"external_links":0,"defined_names":0,"comments":0,"pivot_tables":0},"unopened":[],"bounds":{"document_bytes":16777216,"sheet_cells":100000,"rows_first":2000,"rows_last":500,"rows_between":2000,"halvings":0,"cell_chars":16384,"cell_head_chars":4096},"cells_cut":0,"cells_raw":0,"read":"whole","date_system":"1900"}

{"sheet":"Jeugd","index":0,"n_rows":42,"n_cols":38,"rows_kept":42,"cut":false,"hidden":false,"merged":[]}
[null,"SKD-Z 2013-2014"]
[]
[null,"JEUGD",1,null,2,null,3,null,4,null,5,null,6,null,7,null,8,null,9,null,10,null,11,null,12,null,13,null,14,null,15,null,16,null,null,null,"W","P"]
[null,null,"W","Z","W","Z","W","Z","W","Z","W","Z","W","Z","W","Z","W","Z","W","Z","W","Z","W","Z","W","Z","W","Z","W","Z","W","Z","W","Z"]
[1,"Amiryan Monika",null,null,null,null,null,null,null,null,null,null,null,null,1,null,null,null,null,null,null,null,null,null,null,null,null,1,null,null,null,null,null,null,null,null,{"$f":"COUNT(C5:AJ5)","v":2},{"$f":"SUM(C5:AJ5)","v":2}]
[2,"Anthoon Margot",null,null,null,null,1,3,null,null,null,null,1,1,null,null,null,1,null,null,1,null,1,1,null,null,1,null,1,3,null,null,null,null,null,null,11,15]
[3,"Anthoon Michelle",null,null,1,3,null,null,null,null,1,1,null,null,null,null,null,null,null,null,1,null,1,1,null,null,null,1,1,null,null,null,null,null,null,null,9,11]
[4,"Brack Yannick",null,null,null,null,null,null,null,null,null,null,null,null,null,null,null,null,null,null,null,null,null,null,null,null,null,null,null,null,null,null,null,null,null,null,0,0]
[5,"El Maouhab Iokin",null,null,null,null,3,3,null,null,null,null,1,1,2,null,null,null,null,null,null,null,null,null,null,null,null,null,null,null,null,null,null,null,null,null,5,10]
[6,"El Maouhab Malik",null,null,3,3,null,null,null,null,3,3,null,null,null,null,null,null,null,null,null,null,null,1,null,null,null,null,null,null,null,null,null,null,null,null,5,13]
[7,"El Maouhab Odei",null,3,null,null,null,null,null,null,null,2,null,null,null,null,null,null,null,1,null,null,null,null,null,null,null,null,null,null,3,null,null,null,null,null,4,9]
[8,"Lofti Ayoub",null,null,3,null,null,null,null,null,null,null,null,null,null,null,null,null,2,1,null,3,null,null,null,null,null,1,null,3,null,null,null,null,null,null,6,13]
[9,"Lofti Moh. Amine",null,null,null,null,null,null,null,null,null,null,null,null,3,null,3,2,null,null,null,null,1,1,null,null,null,null,null,null,null,null,null,null,null,null,5,10]
[10,"Rylant Sarah",null,null,null,3,null,3,null,null,null,null,null,null,null,null,1,null,null,null,null,null,1,null,null,null,null,null,null,null,null,null,null,null,null,null,4,8]
[11,"Schrevens Simon",null,null,3,3,3,3,null,null,null,null,3,null,null,null,null,null,3,3,null,3,null,null,null,null,null,null,null,null,null,null,null,null,null,null,8,24]
[12,"Van Acker Joren",null,null,null,null,null,null,null,null,null,null,null,null,null,null,null,null,null,null,null,null,null,null,null,null,null,null,null,null,null,null,null,null,null,null,0,0]
[13,"Tabak Styn",3,null,null,3,3,null,null,null,null,null,null,null,null,null,3,null,null,null,null,null,null,null,null,null,null,null,null,null,3,null,null,null,null,null,5,15]
[14,"Milet Maxim",null,null,1,3,null,3,null,null,null,null,null,null,null,null,1,null,null,null,null,null,null,null,null,null,null,null,null,null,null,null,null,null,null,null,4,8]
[15,"V.D.Sande Yente",null,null,null,null,null,null,null,null,null,null,null,null,null,1,null,null,null,null,null,null,null,null,null,null,null,1,null,null,null,null,null,null,null,null,{"$f":"COUNT(C19:AJ19)","v":2},{"$f":"SUM(C19:AJ19)","v":2}]
[16,null,null,null,null,null,null,null,null,null,null,null,null,null,null,null,null,null,null,null,null,null,null,null,null,null,null,null,null,null,null,null,null,null,null,null,0,0]
[]
[]
[null,null,null,null,"W",null,"P"]
[1,"Schrevens Simon",null,null,{"$f":"$AK$15","v":8},null,{"$f":"$AL$15","v":24}]
[2,"Tabak Styn",null,null,{"$f":"$AK$17","v":5},null,{"$f":"$AL$17","v":15}]
[3,"Anthoon Margot",null,null,{"$f":"$AK$6","v":11},null,{"$f":"$AL$6","v":15}]
[4,"El Maouhab Malik",null,null,{"$f":"$AK$10","v":5},null,{"$f":"$AL$10","v":13}]
[5,"Lofti Ayoub",null,null,{"$f":"$AK$12","v":6},null,{"$f":"$AL$12","v":13}]
[6,"Anthoon Michelle",null,null,{"$f":"$AK$7","v":9},null,{"$f":"$AL$7","v":11}]
[7,"Lofti Moh. Amine",null,null,{"$f":"$AK$13","v":5},null,{"$f":"$AL$13","v":10}]
[8,"El Maouhab Iokin",null,null,{"$f":"$AK$9","v":5},null,{"$f":"$AL$9","v":10}]
[9,"El Maouhab Odei",null,null,{"$f":"$AK$11","v":4},null,{"$f":"$AL$11","v":9}]
[10,"Rylant Sarah",null,null,{"$f":"$AK$14","v":4},null,{"$f":"$AL$14","v":8}]
[11,"Milet Maxim",null,null,{"$f":"$AK$18","v":4},null,{"$f":"$AL$18","v":8}]
[12,"Amiryan Monika",null,null,{"$f":"$AK$5","v":2},null,{"$f":"$AL$5","v":2}]
[13,"V.D.Sande Yente",null,null,{"$f":"$AK$19","v":2},null,{"$f":"$AL$19","v":2}]
[14,"Brack Yannick",null,null,{"$f":"$AK$8","v":0},null,{"$f":"$AL$8","v":0}]
[15,"Van Acker Joren",null,null,{"$f":"$AK$16","v":0},null,{"$f":"$AL$16","v":0}]
[16,null,null,null,{"$f":"$AK$16","v":0},null,{"$f":"$AL$16","v":0}]
[]
[]
[{"$f":"SUM(E24:E40)","v":70},"Wedstrijden"]